bitfinex-derivatives/quotes_SOLF0:USTF0_20240920
["timestamp","ask_amount","ask_price","bid_price","bid_amount"]
[1726826840887,3.3079,151.13,151.1,10.17]
[1726826841690,3.3079,151.13,151.1,13.4785]
[1726826841991,3.3077,151.14,151.1,10.17]
[1726826842188,10.17,151.15,151.1,10.17]
[1726826842386,10.17,151.15,151.1,13.4784]
[1726826842993,3.308,151.13,151.1,13.4784]
[1726826843196,3.32240854,151.18,151.1,10.17]
[1726826843490,1.3525,151.19,151.11,10.17]
[1726826843700,10.17,151.18,151.13,10.17]
[1726826844094,6.6106,151.25,151.14,10.17]
[1726826844294,10.17,151.19,151.15,10.17]
[1726826844494,10.17,151.18,151.11,3.25842834]
[1726826844694,9.1457,151.25,151.11,13.4781]
[1726826844695,3.3077,151.14,151.11,13.4781]
[1726826845294,3.3077,151.14,151.11,3.3081]
[1726826845800,3.3079,151.13,151.1,13.4784]
[1726826846201,3.3079,151.13,151.1,10.17]
[1726826847202,3.3079,151.13,151.09,13.4787]
[1726826848000,3.3082,151.12,151.05,1.2889]
[1726826848202,10.17,151.12,151.07,10.17]
[1726826848599,3.3084,151.11,151.07,13.4791]
[1726826849100,3.8543,151.18,151.1,10.17]
[1726826849295,3.8543,151.18,151.12,10.17]
[1726826849500,14.0243,151.18,151.12,10.17]
[1726826849696,3.3071,151.17,151.15,10.17]
[1726826850307,4.5887,151.18,151.15,10.17]
[1726826850701,1.2818,151.18,151.15,10.17]
[1726826851207,1.2818,151.18,151.11,1.2934]
[1726826851402,1.2818,151.18,151.14,10.17]
[1726826851403,10.17,151.17,151.14,10.17]
[1726826852001,1.2818,151.18,151.11,17.1834]
[1726826852605,3.3073,151.16,151.11,17.1834]
[1726826854011,3.3073,151.16,151.12,3.3079]
[1726826854307,3.3073,151.16,151.11,17.1834]
[1726826854506,3.307,151.17,151.13,3.3077]
[1726826857100,3.307,151.17,151.14,3.3076]
[1726826859402,3.307,151.17,151.15,3.3074]
[1726826860008,15.89,151.21,151.13,15.89]
[1726826860009,17.1707,151.22,151.13,15.89]
[1726826860510,3.3068,151.18,151.15,3.3073]
[1726826862508,3.3067,151.19,151.16,3.3072]
[1726826863913,3.3068,151.18,151.15,3.3073]
[1726826864209,3.3068,151.18,151.13,15.89]
[1726826864210,17.1707,151.22,151.13,15.89]
[1726826864408,3.3069,151.18,151.15,3.3073]
[1726826864602,17.1707,151.22,151.13,15.89]
[1726826865111,3.3069,151.18,151.15,3.3074]
[1726826865507,22.5007,151.25,151.15,15.89]
[1726826865712,3.3062,151.21,151.18,3.3067]
[1726826866715,3.3063,151.2,151.18,3.3067]
[1726826867013,22.5007,151.25,151.15,15.89]
[1726826867408,22.5007,151.25,151.16,3.307]
[1726826867611,3.3065,151.2,151.15,15.89]
[1726826867806,15.89,151.25,151.15,15.89]
[1726826868113,3.3064,151.2,151.18,3.3068]
[1726826868305,15.89,151.25,151.15,15.89]
[1726826869209,15.89,151.21,151.12,132.36]
[1726826869415,1.3279,151.2,151.12,132.36]
[1726826869614,3.3073,151.16,151.12,132.36]
[1726826870212,3.3073,151.16,151.13,3.3077]
[1726826872807,3.3075,151.15,151.12,3.3081]
[1726826873210,2.6995,151.2,151.11,1.2934]
[1726826873418,3.3077,151.14,151.11,4.6016]
[1726826873914,3.3077,151.14,151.12,10.17]
[1726826880021,3.3077,151.14,151.11,1.2934]
[1726826880420,3.3077,151.14,151.12,10.17]
[1726826881322,10.17,151.17,151.12,10.17]
[1726826881814,3.3075,151.15,151.12,10.17]
[1726826882228,10.17,151.17,151.11,1.2934]
[1726826882523,10.17,151.17,151.12,10.17]
[1726826882722,10.17,151.17,151.11,1.2934]
[1726826882723,10.17,151.15,151.09,1.2802]
[1726826883026,10.17,151.15,151.11,10.17]
[1726826884826,3.308,151.13,151.11,10.17]
[1726826886224,3.308,151.13,151.12,10.17]
[1726826886727,10.17,151.13,151.03,10.17]
[1726826886928,2.5583,151.12,151.03,10.17]
[1726826887122,3.3092,151.07,151.03,13.4799]
[1726826887518,10.17,151.09,151.03,10.17]
[1726826887717,3.3093,151.07,151.03,10.17]
[1726826888829,3.3093,151.07,151.03,13.48]
[1726826889321,10.17,151.09,151.03,10.17]
[1726826890123,10.17,151.05,150.99,4.6642]
[1726826890322,10.17,151.02,150.93,2.6124]
[1726826890525,10.17,151.02,150.96,10.17]
[1726826890723,10.17,151.0,150.93,136.3045]
[1726826890918,10.17,151.0,150.95,10.17]
[1726826891222,3.3113,150.98,150.93,139.6167]
[1726826891422,3.29779736,151.04,150.93,146.4745]
[1726826891423,10.17,150.99,150.93,146.4745]
[1726826891828,3.3115,150.97,150.93,146.4745]
[1726826892028,3.3115,150.97,150.93,136.3045]
[1726826892529,3.3112,150.98,150.93,139.6167]
[1726826893324,3.3118,150.96,150.93,136.3045]
[1726826893528,15.91,151.01,150.93,136.3045]
[1726826893924,3.3115,150.97,150.93,136.3045]
[1726826894428,15.91,150.97,150.93,132.38]
[1726826894620,15.91,150.99,150.93,132.38]
[1726826895018,3.3119,150.95,150.93,132.38]
[1726826895829,3.312,150.94,150.93,132.38]
[1726826896530,15.91,150.95,150.85,19.8472]
[1726826896829,15.91,150.95,150.87,3.3135]
[1726826897627,3.3128,150.91,150.87,3.3135]
[1726826898321,15.91,150.93,150.86,3.3137]
[1726826898731,3.3131,150.9,150.86,3.3137]
[1726826899326,17.1964,150.95,150.87,3.3135]
[1726826899529,17.1964,150.95,150.86,15.91]
[1726826900031,3.3126,150.92,150.87,3.3135]
[1726826900227,17.1964,150.95,150.86,15.91]
[1726826900420,3.3129,150.9,150.86,3.3137]
[1726826902331,3.3128,150.91,150.86,3.3137]
[1726826902629,17.1964,150.95,150.86,3.3137]
[1726826903121,3.3128,150.91,150.86,3.3137]
[1726826903319,17.1964,150.95,150.85,18.5392]
[1726826903523,1.2864,150.95,150.88,3.3132]
[1726826903722,3.3125,150.92,150.87,15.91]
[1726826904027,3.3125,150.92,150.87,19.2234]
[1726826904334,3.3127,150.91,150.87,19.2234]
[1726826904929,3.3127,150.91,150.87,15.91]
[1726826905632,3.3127,150.91,150.87,19.2234]
[1726826905832,3.3125,150.92,150.87,19.2234]
[1726826906535,3.3125,150.92,150.87,15.91]
[1726826907034,3.3125,150.92,150.87,3.3134]
[1726826907234,3.3125,150.92,150.86,15.91]
[1726826908835,3.3125,150.92,150.88,3.3133]
[1726826909634,3.3127,150.91,150.87,3.3135]
[1726826909836,17.1964,150.95,150.86,15.91]
[1726826910234,3.3127,150.92,150.86,15.91]
[1726826910632,17.1964,150.95,150.86,15.91]
[1726826911036,3.3126,150.92,150.88,3.3133]
[1726826914031,3.3126,150.92,150.89,10.19]
[1726826914439,3.3126,150.92,150.89,13.5031]
[1726826915447,3.3127,150.91,150.89,13.5031]
[1726826915642,3.3127,150.91,150.89,10.19]
[1726826916338,1.2864,150.95,150.9,10.19]
[1726826916546,11.4764,150.95,150.9,10.19]
[1726826916742,11.4764,150.95,150.9,13.5027]
[1726826917245,3.3124,150.93,150.9,13.5027]
[1726826920344,3.3121,150.94,150.91,3.3126]
[1726826921148,3.3121,150.94,150.92,3.3125]
[1726826921348,3.312,150.95,150.92,3.3125]
[1726826921651,11.5432,150.96,150.92,3.3125]
[1726826921854,3.3122,150.94,150.91,13.5026]
[1726826922653,3.3123,150.93,150.91,3.3126]
[1726826923556,3.3123,150.93,150.9,13.5028]
[1726826925559,3.3121,150.94,150.91,13.5026]
[1726826928155,10.19,150.97,150.92,10.19]
[1726826928358,1.3809,151.0,150.96,10.19]
[1726826928762,10.19,151.01,150.96,10.19]
[1726826930864,3.3108,151.0,150.97,3.3113]
[1726826931061,3.3108,151.0,150.97,13.5013]
[1726826931366,3.311,150.99,150.97,10.19]
[1726826931561,3.311,150.99,150.96,13.5015]
[1726826931767,10.19,151.0,150.96,13.5015]
[1726826932469,3.311,150.99,150.96,13.5015]
[1726826933064,3.3113,150.98,150.95,10.19]
[1726826934868,3.3113,150.98,150.95,13.5016]
[1726826936272,10.19,151.02,150.97,10.19]
[1726826936965,3.3108,151.0,150.97,10.19]
[1726826937171,10.19,151.02,150.96,10.19]
[1726826937768,3.311,150.99,150.96,13.5015]
[1726826940464,10.19,151.01,150.94,1.2973]
[1726826940671,10.19,150.98,150.91,1.3727]
[1726826940973,10.19,150.98,150.92,10.19]
[1726826941670,3.3115,150.97,150.93,3.3121]
[1726826942263,3.3115,150.97,150.93,13.5021]
[1726826943778,3.3116,150.96,150.93,13.5021]
[1726826948374,3.3116,150.96,150.93,10.19]
[1726826948573,10.19,150.95,150.88,2.7459]
[1726826948773,10.19,150.95,150.91,10.19]
[1726826949275,10.19,150.95,150.88,2.7459]
[1726826949466,10.19,150.94,150.88,1.3881]
[1726826949665,4.0405,151.03,150.87,132.52]
[1726826949666,10.19,150.91,150.87,132.52]
[1726826949970,10.19,150.91,150.87,142.71]
[1726826950171,10.19,150.91,150.87,146.0236]
[1726826950476,10.19,150.91,150.87,3.3136]
[1726826950776,13.5028,150.91,150.88,10.19]
[1726826951174,3.3128,150.91,150.88,10.19]
[1726826954677,10.19,150.91,150.86,13.5037]
[1726826954974,10.19,150.9,150.84,3.31621096]
[1726826955176,10.19,150.88,150.83,10.19]
[1726826955582,10.19,150.89,150.83,10.19]
[1726826955978,10.19,150.89,150.83,3.36602426]
[1726826956275,3.3135,150.88,150.85,10.19]
[1726826956482,10.19,150.89,150.82,1.2802]
[1726826956682,3.3137,150.87,150.84,10.19]
[1726826957477,3.3138,150.86,150.83,10.19]
[1726826960587,3.3138,150.86,150.82,4.5948]
[1726826960878,3.3138,150.86,150.83,10.19]
[1726826962674,3.3138,150.86,150.83,3.3144]
[1726826962876,3.3138,150.86,150.85,10.19]
[1726826963794,3.3137,150.87,150.85,10.19]
[1726826963978,9.3642,150.95,150.86,10.19]
[1726826964184,2.7401,150.95,150.88,10.19]
[1726826964387,10.19,150.93,150.88,10.19]
[1726826964689,2.7401,150.95,150.89,10.19]
[1726826964890,12.9301,150.95,150.89,10.19]
[1726826965184,2.7401,150.95,150.91,10.19]
[1726826965782,3.3124,150.93,150.91,13.5026]
[1726826966187,3.3124,150.93,150.91,10.19]
[1726826966891,3.3125,150.92,150.91,10.19]
[1726826968894,2.7401,150.95,150.91,10.19]
[1726826969099,12.9301,150.95,150.91,10.19]
[1726826969294,3.3125,150.92,150.91,10.19]
[1726826971895,3.3129,150.91,150.88,3.3132]
[1726826972095,3.3129,150.91,150.89,10.19]
[1726826975899,3.3129,150.91,150.9,10.19]
[1726826980409,3.3129,150.91,150.89,10.19]
[1726826980810,3.3129,150.9,150.89,10.19]
[1726826981208,10.19,150.92,150.88,10.19]
[1726826981412,3.3131,150.89,150.88,10.19]
[1726826981705,10.19,150.89,150.82,1.2802]
[1726826981914,10.19,150.88,150.82,4.5948]
[1726826982213,10.19,150.88,150.83,10.19]
[1726826982401,3.3139,150.86,150.83,10.19]
[1726826983013,3.3139,150.86,150.83,13.5044]
[1726826983611,10.19,150.88,150.83,10.19]
[1726826984410,3.3139,150.86,150.83,13.5044]
[1726826985213,3.3137,150.87,150.84,10.19]
[1726826986508,1.343,150.91,150.77,1.3944]
[1726826986710,1.343,150.91,150.81,10.19]
[1726826986711,10.19,150.86,150.81,10.19]
[1726826986913,10.19,150.86,150.8,10.19]
[1726826987110,3.3146,150.83,150.8,10.19]
[1726826987509,3.3146,150.83,150.81,10.19]
[1726826988015,10.19,150.86,150.81,10.19]
[1726826988218,10.19,150.84,150.77,1.3944]
[1726826988515,10.19,150.84,150.78,10.19]
[1726826988920,3.315,150.81,150.78,10.19]
[1726826989313,10.19,150.84,150.78,10.19]
[1726826989718,3.3148,150.82,150.78,13.5055]
[1726826990718,3.3149,150.81,150.78,13.5055]
[1726826991319,3.3149,150.81,150.78,10.19]
[1726826992419,10.19,150.83,150.76,132.6]
[1726826992718,10.19,150.83,150.78,10.19]
[1726826992922,1.3036,150.85,150.78,10.19]
[1726826993123,10.19,150.83,150.78,10.19]
[1726826993624,1.3036,150.85,150.79,10.19]
[1726826993825,1.3036,150.85,150.8,10.19]
[1726826994823,10.19,150.83,150.78,10.19]
[1726826995017,10.19,150.83,150.74,3.28999402]
[1726826995214,1.3036,150.85,150.72,2.601]
[1726826995423,10.19,150.8,150.76,10.19]
[1726826995723,3.3159,150.77,150.74,3.3164]
[1726826995919,11.5516,150.82,150.76,10.19]
[1726826996521,3.3157,150.78,150.76,10.19]
[1726826997321,3.3157,150.78,150.77,10.19]
[1726826998219,1.3616,150.82,150.77,10.19]
[1726826998424,3.3152,150.8,150.77,3.3157]
[1726826998626,3.3152,150.8,150.79,10.19]
[1726826998823,1.3616,150.82,150.79,10.19]
[1726826998824,4.6763,150.82,150.79,13.5051]
[1726826999021,10.19,150.84,150.79,10.19]
[1726826999930,1.3036,150.85,150.79,10.19]
[1726827000224,1.3209,150.86,150.82,10.19]
[1726827000430,10.19,150.89,150.84,10.19]
[1726827000622,11.5659,150.9,150.86,10.19]
[1726827000818,3.3135,150.88,150.86,10.19]
[1726827002327,1.3759,150.9,150.86,10.19]
[1726827002719,3.3139,150.86,150.83,3.3144]
[1726827002923,3.3139,150.86,150.85,10.19]
[1726827003726,11.5659,150.9,150.85,10.19]
[1726827004724,3.3137,150.87,150.85,10.19]
[1726827004923,3.3137,150.87,150.86,10.19]
[1726827007830,3.3134,150.88,150.86,10.19]
[1726827008035,1.2853,150.95,150.87,10.19]
[1726827008229,2.6509,150.95,150.87,10.19]
[1726827008425,10.19,150.92,150.87,10.19]
[1726827008630,3.3133,150.89,150.87,10.19]
[1726827009134,2.6509,150.95,150.88,10.19]
[1726827009336,12.8409,150.95,150.9,10.19]
[1726827010131,3.3127,150.91,150.9,10.19]
[1726827012738,11.4857,150.97,150.9,10.19]
[1726827012929,10.19,150.96,150.92,10.19]
[1726827013335,3.3124,150.93,150.92,10.19]
[1726827014034,3.3127,150.92,150.89,3.313]
[1726827014231,10.19,150.96,150.9,10.19]
[1726827014626,3.3127,150.91,150.9,10.19]
[1726827014832,1.2957,150.97,150.88,3.3132]
[1726827014833,10.19,150.95,150.88,3.3132]
[1726827015026,10.19,150.95,150.89,10.19]
[1726827015333,3.3129,150.91,150.89,10.19]
[1726827016431,3.3129,150.91,150.9,10.19]
[1726827018637,3.28185708,150.96,150.82,132.62]
[1726827018934,7.9187,150.97,150.85,10.19]
[1726827018935,10.19,150.9,150.85,10.19]
[1726827019840,3.3137,150.87,150.85,10.19]
[1726827020239,10.19,150.9,150.82,132.62]
[1726827020436,10.19,150.9,150.85,10.19]
[1726827020631,10.19,150.9,150.86,10.19]
[1726827020834,3.3136,150.87,150.86,10.19]
[1726827023637,10.19,150.88,150.81,2.7064]
[1726827023843,10.19,150.86,150.81,11.5897]
[1726827024039,3.3145,150.83,150.81,11.5897]
[1726827025040,3.3147,150.82,150.81,10.19]
[1726827025341,10.19,150.88,150.81,10.19]
[1726827025537,10.19,150.88,150.84,10.19]
[1726827025933,2.6612,150.91,150.86,10.19]
[1726827026138,12.8512,150.91,150.86,10.19]
[1726827027735,10.19,150.9,150.85,10.19]
[1726827027932,10.19,150.89,150.85,10.19]
[1726827028737,3.3138,150.86,150.85,10.19]
[1726827030740,12.8512,150.91,150.85,10.19]
[1726827030941,12.8512,150.91,150.86,10.19]
[1726827031648,3.3133,150.89,150.86,10.19]
[1726827032243,12.8512,150.91,150.86,13.5037]
[1726827032447,11.4996,150.92,150.88,10.19]
[1726827032748,3.3127,150.91,150.89,10.19]
[1726827033047,10.19,150.93,150.89,10.19]
[1726827033444,3.3129,150.91,150.89,10.19]
[1726827033643,10.19,150.93,150.89,10.19]
[1726827034549,3.3128,150.91,150.89,10.19]
[1726827037450,10.19,150.93,150.89,10.19]
[1726827037451,3.3129,150.9,150.89,10.19]
[1726827037656,3.30582239,150.96,150.82,4.59580656]
[1726827037853,10.19,150.92,150.87,10.19]
[1726827039149,3.3131,150.9,150.87,10.19]
[1726827039754,3.3131,150.9,150.88,10.19]
[1726827042464,3.3131,150.89,150.88,10.19]
[1726827045165,3.313,150.9,150.88,10.19]
[1726827045362,10.19,150.93,150.89,10.19]
[1726827045562,3.3129,150.91,150.89,10.19]
[1726827046169,3.3129,150.9,150.89,10.19]
[1726827046658,3.3129,150.9,150.88,10.19]
[1726827047764,3.36879594,150.95,150.82,137.17580656]
[1726827047967,10.19,150.9,150.86,10.19]
[1726827048165,10.19,150.89,150.84,10.19]
[1726827048869,10.19,150.88,150.82,133.9427]
[1726827049067,10.19,150.87,150.83,10.19]
[1726827049266,3.3142,150.84,150.83,10.19]
[1726827049769,3.3141,150.85,150.83,10.19]
[1726827051173,3.3141,150.85,150.84,10.19]
[1726827051471,10.19,150.9,150.84,10.19]
[1726827051665,10.19,150.9,150.86,10.19]
[1726827051972,3.3135,150.88,150.86,10.19]
[1726827052271,2.6542,150.91,150.87,10.19]
[1726827052570,3.3133,150.89,150.87,10.19]
[1726827053871,3.3133,150.88,150.87,10.19]
[1726827056074,3.3137,150.87,150.86,10.19]
[1726827056670,3.3137,150.87,150.85,10.19]
[1726827057176,3.3138,150.86,150.83,3.3143]
[1726827057386,3.3138,150.86,150.84,10.19]
[1726827058076,3.3136,150.87,150.85,10.19]
[1726827059477,3.3134,150.88,150.86,10.19]
[1726827059673,2.6542,150.91,150.87,10.19]
[1726827059875,1.3617,150.91,150.88,10.19]
[1726827060677,3.313,150.9,150.88,10.19]
[1726827060975,10.19,150.93,150.88,10.19]
[1726827061469,3.3133,150.89,150.87,10.19]
[1726827061871,10.19,150.92,150.87,10.19]
[1726827062077,3.3133,150.88,150.87,10.19]
[1726827062272,7.32610557,150.95,150.82,1.3627]
[1726827062273,10.19,150.9,150.82,1.3627]
[1726827062479,10.19,150.9,150.85,10.19]
[1726827062675,3.3137,150.87,150.85,10.19]
[1726827062875,7.32610557,150.95,150.85,10.19]
[1726827062876,10.19,150.89,150.85,10.19]
[1726827063873,3.3138,150.86,150.85,10.19]
[1726827065079,10.19,150.88,150.82,1.3627]
[1726827065378,3.3144,150.83,150.8,10.19]
[1726827065578,10.19,150.84,150.73,2.5843]
[1726827065773,10.19,150.84,150.79,10.19]
[1726827066175,3.3148,150.82,150.79,10.19]
[1726827066670,10.19,150.84,150.78,132.6]
[1726827066873,3.3148,150.82,150.79,10.19]
[1726827067278,10.19,150.84,150.79,10.19]
[1726827067884,18.5794,150.86,150.78,135.9155]
[1726827068480,18.5794,150.86,150.79,3.3153]
[1726827068676,15.92,150.9,150.81,15.92]
[1726827068982,15.92,150.92,150.82,15.92]
[1726827069181,15.92,150.92,150.82,19.2346]
[1726827069475,3.3142,150.85,150.82,15.92]
[1726827069670,3.3142,150.85,150.82,19.2346]
[1726827070070,3.3142,150.85,150.82,15.92]
[1726827070274,3.3143,150.84,150.81,3.3147]
[1726827070471,3.3143,150.84,150.8,15.92]
[1726827070880,3.3143,150.84,150.8,19.235]
[1726827071076,3.3143,150.84,150.8,15.92]
[1726827071383,3.3143,150.84,150.8,19.1632488]
[1726827071781,3.3141,150.85,150.8,19.1632488]
[1726827072384,3.3141,150.85,150.81,3.3147]
[1726827074583,1.3327,150.89,150.81,3.3147]
[1726827074777,1.3327,150.89,150.82,15.92]
[1726827074976,2.6299,150.94,150.85,15.92]
[1726827075174,3.9918,150.94,150.88,3.3132]
[1726827075377,1.2805,150.94,150.89,15.92]
[1726827075580,17.1988,151.0,150.91,15.92]
[1726827075780,15.92,150.98,150.89,15.92]
[1726827076181,15.92,150.98,150.9,3.3129]
[1726827076377,15.92,150.98,150.88,3.37565709]
[1726827076583,15.92,150.98,150.89,15.92]
[1726827076782,3.3124,150.93,150.89,19.233]
[1726827076985,15.92,150.98,150.89,15.92]
[1726827077189,1.2788,151.0,150.89,15.92]
[1726827077490,15.92,150.98,150.89,19.233]
[1726827078180,17.1988,151.0,150.91,15.92]
[1726827079289,3.3122,150.94,150.91,19.2325]
[1726827080482,3.3124,150.93,150.89,3.313]
[1726827080681,3.3124,150.93,150.89,19.233]
[1726827080882,15.92,150.98,150.89,19.233]
[1726827081088,15.92,150.96,150.87,20.5493561]
[1726827081393,15.92,150.96,150.87,15.92]
[1726827081696,3.3129,150.9,150.87,19.2334]
[1726827082391,3.3129,150.9,150.87,15.92]
[1726827084292,3.3128,150.91,150.87,15.92]
[1726827084696,3.3128,150.91,150.87,19.2335]
[1726827085996,3.3129,150.9,150.87,19.2335]
[1726827086191,2.6611,150.95,150.87,15.92]
[1726827086396,2.6611,150.95,150.86,1.3889]
[1726827086397,15.92,150.94,150.86,1.3889]
[1726827086597,20.60063723,150.94,150.85,15.92]
[1726827086999,15.92,150.92,150.84,3.25477923]
[1726827087296,3.3138,150.86,150.83,15.92]
[1726827087895,3.3142,150.85,150.82,1.3363]
[1726827088997,3.3142,150.85,150.82,4.6509]
[1726827089600,15.92,150.9,150.83,3.3144]
[1726827089903,15.92,150.92,150.83,3.3144]
[1726827090198,3.3137,150.87,150.84,3.3142]
[1726827091291,3.314,150.85,150.82,20.5709]
[1726827092099,3.3139,150.86,150.82,20.5709]
[1726827092299,3.3139,150.86,150.83,3.3144]
[1726827093305,15.92,150.92,150.84,15.92]
[1726827093511,17.204,150.94,150.84,15.92]
[1726827093906,3.3135,150.88,150.85,3.3139]
[1726827095013,3.3135,150.88,150.84,19.2341]
[1726827095212,3.3135,150.88,150.84,15.92]
[1726827095814,3.3135,150.88,150.85,3.314]
[1726827096109,3.3135,150.88,150.84,15.92]
[1726827096310,3.3136,150.87,150.84,15.92]
[1726827096709,3.3136,150.87,150.82,1.3363]
[1726827096917,15.92,150.86,150.76,15.92]
[1726827097416,19.949,150.88,150.78,15.92]
[1726827098318,3.3146,150.83,150.79,3.3152]
[1726827099016,3.3146,150.83,150.8,3.3151]
[1726827099807,3.3146,150.83,150.79,3.3152]
[1726827100717,3.3146,150.83,150.75,2.6881]
[1726827100718,4.029,150.88,150.8,19.15550533]
[1726827100913,4.029,150.88,150.8,15.92]
[1726827101315,3.3141,150.85,150.81,3.3147]
[1726827101617,3.3141,150.85,150.81,6.66681845]
[1726827102115,15.92,150.9,150.82,3.3145]
[1726827102316,15.92,150.9,150.81,3.35211845]
[1726827102517,15.92,150.9,150.83,3.3144]
[1726827102518,3.3138,150.87,150.83,3.3144]
[1726827102822,15.92,150.9,150.81,4.62381845]
[1726827103922,3.3139,150.86,150.82,3.3145]
[1726827104922,3.8976,150.92,150.84,15.92]
[1726827105124,2.5903,150.92,150.86,15.92]
[1726827105626,15.92,150.91,150.81,3.35211845]
[1726827105820,15.92,150.89,150.8,15.92]
[1726827106217,3.3147,150.82,150.78,21.887]
[1726827106423,15.92,150.89,150.78,18.5716]
[1726827106726,15.92,150.87,150.78,18.5716]
[1726827107127,3.3148,150.82,150.78,17.1978]
[1726827107322,15.92,150.87,150.78,17.1978]
[1726827107723,3.3146,150.83,150.79,3.3153]
[1726827110332,15.92,150.87,150.77,132.62]
[1726827110629,15.92,150.83,150.74,15.92]
[1726827111024,3.3155,150.79,150.74,19.2363]
[1726827111224,15.92,150.83,150.74,19.2363]
[1726827111726,15.92,150.83,150.74,15.92]
[1726827112133,3.3158,150.77,150.74,15.92]
[1726827112527,15.92,150.83,150.74,15.92]
[1726827113029,3.3155,150.79,150.75,3.316]
[1726827113225,15.92,150.83,150.75,3.316]
[1726827114427,3.3155,150.79,150.75,3.316]
[1726827114632,15.92,150.81,150.73,1.3745]
[1726827115226,3.3161,150.76,150.73,1.3745]
[1726827115434,15.92,150.81,150.73,1.3745]
[1726827116538,15.92,150.81,150.73,4.6911]
[1726827116733,15.92,150.81,150.73,1.3745]
[1726827116940,3.316,150.76,150.73,1.3745]
[1726827117137,15.92,150.81,150.73,1.3745]
[1726827117439,3.3158,150.77,150.73,1.3745]
[1726827118140,3.316,150.76,150.73,4.6911]
[1726827119745,3.3158,150.77,150.73,4.6911]
[1726827120244,15.92,150.81,150.73,1.3745]
[1726827120744,3.316,150.77,150.73,1.3745]
[1726827120945,3.316,150.77,150.73,4.6911]
[1726827125843,3.316,150.76,150.72,19.2368]
[1726827126051,3.316,150.76,150.72,15.92]
[1726827126449,3.3158,150.77,150.74,3.3164]
[1726827126951,15.92,150.81,150.74,3.3164]
[1726827127248,15.92,150.81,150.71,3.34892197]
[1726827127550,1.2633,150.8,150.72,15.92]
[1726827127746,1.2633,150.8,150.72,19.24382083]
[1726827128150,3.316,150.77,150.73,3.3166]
[1726827128850,1.2633,150.8,150.72,22.56052083]
[1726827129047,1.2633,150.8,150.72,19.24382083]
[1726827129952,1.2633,150.8,150.72,15.92]
[1726827130151,1.2981,150.79,150.72,15.92]
[1726827130346,1.2981,150.79,150.72,19.2368]
[1726827130650,1.2981,150.79,150.72,15.92]
[1726827130853,3.3163,150.75,150.72,19.2369]
[1726827131654,1.2981,150.79,150.71,3.317]
[1726827132158,15.92,150.78,150.7,3.3172]
[1726827132454,17.2131,150.78,150.69,15.92]
[1726827132854,3.3168,150.73,150.69,19.2374]
[1726827135457,3.3169,150.72,150.69,19.2374]